fUSD/lending_fUSD_20240216
["ID","MTS","AMOUNT","RATE_DAILY","PERIOD"]
[314260288,1708120247001,-562.86,0.00049863,60]
[314260289,1708120247011,-1988.92,0.00049863,60]
[314260290,1708120247020,-500.0,0.00049863,60]
[314260291,1708120247030,-500.0,0.00049863,60]
[314260292,1708120247039,-500.0,0.00049863,60]
[314260293,1708120247049,-500.0,0.00049863,60]
[314260294,1708120247058,-14075.16,0.00049863,60]
[314260295,1708120247067,-500.0,0.00049863,60]
[314260296,1708120247077,-4798.01674575,0.0004999,11]
[314260297,1708120247090,-382.88143247,0.0004999,11]
[314260298,1708120247102,-2187.04816452,0.0004999,11]
[314260299,1708120247113,-735.9234,0.0004999,11]
[314260300,1708120247125,-503.5,0.0004999,11]
[314260301,1708120247137,-842.0,0.0004999,11]
[314260302,1708120247149,-950.0,0.0004999,11]
[314260303,1708120247162,-48181.15843796,0.0004999,11]
[314260304,1708120247175,-7298.27462943,0.0004999,11]
[314260305,1708120270620,6819.83770142,0.0002509,2]
[314260306,1708120313848,3180.16229858,0.00022789,2]
[314260307,1708120313871,493.50397939,0.00022789,2]
[314260308,1708120366415,5465.47341339,0.0002509,2]
[314260309,1708120374058,3644.9227114,0.000263,2]
[314260311,1708120437452,3950.0,0.0002,2]
[314260312,1708120449190,1000.0,0.000135,2]
[314260313,1708120449241,284.03220708,0.000125,2]
[314260314,1708120449267,1976.49885611,0.0002,2]
[314260316,1708120458730,158.30384599,0.0002,2]
[314260317,1708120460364,5212.25089655,0.000272,2]
[314260318,1708120461207,236.45891186,0.00022,2]
[314260319,1708120462033,238.34381878,0.00025,2]
[314260320,1708120464624,16131.93365468,0.00028,2]
[314260321,1708120464667,235.1606757,0.000137,2]
[314260322,1708120464950,156.15106252,0.00022,2]
[314260323,1708120465318,206.68392952,0.0001,2]
[314260324,1708120468835,300.0,0.000279,2]
[314260325,1708120600801,155.0,0.000279,2]
[314260326,1708120622798,155.0,0.000279,2]
[314260327,1708120644792,155.0,0.000279,2]
[314260328,1708120664807,155.0,0.000279,2]
[314260329,1708120684797,155.0,0.000279,2]
[314260330,1708120705304,266.3167226,0.000279,2]
[314260331,1708120857700,-450.25717808,0.0003,2]
[314260332,1708120862030,-296.80662458,0.000301,2]
[314260333,1708120872498,-518.01970828,0.00032387,7]
[314260334,1708120872524,-1000.93602737,0.000328,2]
[314260335,1708120878548,-10000.0,0.00033082,2]
[314260336,1708120885053,-10000.0,0.00033082,2]
[314260337,1708120893325,550.0,0.00025,3]
[314260338,1708120894409,600.0,0.00027,3]
[314260339,1708120895533,650.0,0.00029,3]
[314260340,1708121058053,155.0,0.00029,2]
[314260341,1708121079837,155.0,0.00029,2]
[314260342,1708121095827,155.0,0.00029,2]
[314260343,1708121115836,155.0,0.00029,2]
[314260344,1708121133844,155.0,0.00029,2]
[314260345,1708121158017,155.0,0.00029,2]
[314260346,1708121175839,155.0,0.00029,2]
[314260347,1708121193843,155.0,0.00029,2]
[314260348,1708121213851,234.84186572,0.00029,2]
[314260349,1708121286581,396.5,0.00032161,2]
[314260350,1708121326818,-189.57821163,0.00033078,4]
[314260351,1708121326839,-333.99435899,0.00033079,4]
[314260352,1708121326860,-500.0,0.00034035,2]
[314260353,1708121326881,-500.0,0.00034065,2]
[314260354,1708121326902,-150.0,0.00034146,2]
[314260355,1708121326922,-250.0,0.00034171,111]
[314260356,1708121326943,-10759.46419088,0.00034172,2]
[314260357,1708121326963,-200.0,0.00034202,2]
[314260358,1708121326983,-600.0,0.00034227,2]
[314260359,1708121327004,-16516.9632385,0.00034249,2]
[314260360,1708121335307,-7383.0367615,0.00034249,2]
[314260361,1708121335327,-250.0,0.00034293,2]
[314260362,1708121335348,-2000.0,0.00034313,2]
[314260363,1708121335369,-2931.84,0.00034415,2]
[314260364,1708121335391,-155.64022283,0.0003442,2]
[314260365,1708121335410,-396.5,0.00034425,2]
[314260366,1708121335430,-500.0,0.00034496,2]
[314260367,1708121335450,-720.871658,0.0003452,2]
[314260368,1708121335470,-514.908327,0.0003452,2]
[314260369,1708121335490,-186.19,0.00034753,2]
[314260370,1708121335510,-200.0,0.00034754,2]
[314260371,1708121335531,-340.64,0.00034774,2]
[314260372,1708121335551,-504.95493302,0.00034784,2]
[314260373,1708121335575,-1081.307487,0.00034794,2]
[314260374,1708121335596,-772.362491,0.00034794,2]
[314260375,1708121335617,-250.0,0.00034808,2]
[314260376,1708121335639,-1441.743316,0.00034931,2]
[314260377,1708121335660,-1029.816655,0.00034931,2]
[314260378,1708121335681,-186.19,0.00034954,2]
[314260379,1708121335701,-150.0,0.00034998,2]
[314260380,1708121335721,-155.0,0.00035,2]
[314260381,1708121335742,-1802.179146,0.00035068,2]
[314260382,1708121335762,-1287.270819,0.00035068,2]
[314260383,1708121335783,-186.19,0.00035155,2]
[314260384,1708121335804,-175.0,0.00035254,2]
[314260385,1708121335824,-2523.050804,0.00035342,2]
[314260386,1708121335843,-1802.179147,0.00035342,2]
[314260387,1708121335863,-186.19,0.00035355,2]
[314260388,1708121335882,-166.03,0.0003539,2]
[314260389,1708121335901,-225.0,0.00035542,2]
[314260390,1708121335921,-150.0,0.00035546,2]
[314260391,1708121335940,-186.19,0.00035556,2]
[314260392,1708121335960,-159.71823265,0.00035639,2]
[314260393,1708121342684,-200.0,0.00035336,2]
[314260394,1708121342705,-540.89154076,0.00035639,2]
[314260395,1708121342727,-249.71,0.0003564,10]
[314260396,1708121342747,-400.0,0.00035649,3]
[314260397,1708121342767,-6235.809,0.0003565,2]
[314260398,1708121342786,-2500.0,0.0003565,2]
[314260399,1708121342807,-2925.2538,0.0003565,2]
[314260400,1708121342826,-16948.33565924,0.0003565,2]
[314260401,1708121363076,-250.0,0.00035336,2]
[314260402,1708121363096,-283.86,0.00035383,2]
[314260403,1708121363115,-189.57821163,0.00035649,4]
[314260404,1708121363135,-20515.08764076,0.0003565,2]
[314260405,1708121363156,-208.09,0.00035729,10]
[314260406,1708121363177,-173.41,0.00035729,10]
[314260407,1708121363210,-867.09,0.00035729,10]
[314260408,1708121363231,-2288.71215036,0.0003574,2]
[314260409,1708121363250,-2288.71215036,0.0003574,2]
[314260410,1708121363269,-2288.71215036,0.0003574,2]
[314260411,1708121363288,-646.74769653,0.0003574,2]
[314260415,1708121431684,-155.0,0.00035638,4]
[314260416,1708121431694,-2322.89020137,0.00035639,2]
[314260417,1708121431706,-177.10979863,0.00035639,2]
[314260418,1708121431716,-174.37020138,0.0003574,2]
[314260419,1708121431729,-2039.2131075,0.0003574,2]
[314260420,1708121431738,-2213.58330888,0.0003574,2]
[314260421,1708121431747,-2213.58330888,0.0003574,2]
[314260422,1708121431756,-2213.58330888,0.0003574,2]
[314260423,1708121431766,-2213.58330888,0.0003574,2]
[314260424,1708121431775,-2213.58330888,0.0003574,2]
[314260425,1708121431784,-2213.58330888,0.0003574,2]
[314260426,1708121431793,-2213.58330888,0.0003574,2]
[314260427,1708121431803,-2213.58330888,0.0003574,2]
[314260428,1708121431812,-2213.58330888,0.0003574,2]
[314260429,1708121431821,-2213.58330888,0.0003574,2]
[314260430,1708121431831,-2213.58330888,0.0003574,2]
[314260431,1708121431840,-2213.58330888,0.0003574,2]
[314260432,1708121431849,-2213.58330888,0.0003574,2]
[314260433,1708121431859,-2213.58330888,0.0003574,2]
[314260434,1708121431869,-2213.58330888,0.0003574,2]
[314260435,1708121431879,-2213.58330888,0.0003574,2]
[314260436,1708121431889,-2213.58330888,0.0003574,2]
[314260437,1708121431898,-2213.58330888,0.0003574,2]
[314260438,1708121431907,-2213.58330888,0.0003574,2]
[314260439,1708121431917,-2213.58330888,0.0003574,2]
[314260440,1708121431927,-2213.58330888,0.0003574,2]
[314260441,1708121431936,-2213.58330888,0.0003574,2]
[314260442,1708121431946,-2213.58330888,0.0003574,2]
[314260443,1708121431955,-2213.58330888,0.0003574,2]
[314260444,1708121431965,-2213.58330888,0.0003574,2]
[314260445,1708121431974,-2213.58330888,0.0003574,2]
[314260446,1708121431984,-2213.58330888,0.0003574,2]
[314260447,1708121431993,-2213.58330888,0.0003574,2]
[314260448,1708121432003,-2213.58330888,0.0003574,2]
[314260449,1708121432013,-2213.58330888,0.0003574,2]
[314260450,1708121432022,-2213.58330888,0.0003574,2]
[314260451,1708121432032,-2213.58330888,0.0003574,2]
[314260452,1708121432041,-2213.58330888,0.0003574,2]
[314260453,1708121432051,-2213.58330888,0.0003574,2]
[314260454,1708121432060,-2213.58330888,0.0003574,2]
[314260455,1708121432069,-2213.58330888,0.0003574,2]
[314260457,1708121432079,-497.8983454,0.0003574,2]
[314260460,1708121432109,-1715.68496348,0.0003574,2]
[314260461,1708121432118,-2213.58330888,0.0003574,2]
[314260463,1708121432127,-2213.58330888,0.0003574,2]
[314260464,1708121432137,-2213.58330888,0.0003574,2]
[314260466,1708121432146,-2213.58330888,0.0003574,2]
[314260468,1708121432156,-2213.58330888,0.0003574,2]
[314260469,1708121432165,-2213.58330888,0.0003574,2]
[314260471,1708121432174,-2213.58330888,0.0003574,2]
[314260473,1708121432183,-2213.58330888,0.0003574,2]
[314260475,1708121432193,-2213.58330888,0.0003574,2]
[314260476,1708121432202,-2213.58330888,0.0003574,2]
[314260477,1708121432212,-646.44389604,0.0003574,2]
[314260479,1708121432225,-1567.13941284,0.0003574,2]
[314260480,1708121432235,-2213.58330888,0.0003574,2]
[314260482,1708121432244,-2213.58330888,0.0003574,2]
[314260483,1708121432254,-2213.58330888,0.0003574,2]
[314260485,1708121432263,-2213.58330888,0.0003574,2]
[314260486,1708121432273,-2213.58330888,0.0003574,2]
[314260487,1708121432282,-149.95749234,0.0003574,2]
[314260488,1708121432296,-2063.62581654,0.0003574,2]
[314260489,1708121432306,-2213.58330888,0.0003574,2]
[314260490,1708121432316,-2213.58330888,0.0003574,2]
[314260491,1708121432325,-2213.58330888,0.0003574,2]
[314260492,1708121432335,-2213.58330888,0.0003574,2]
[314260493,1708121432345,-2213.58330888,0.0003574,2]
[314260494,1708121432355,-2213.58330888,0.0003574,2]
[314260495,1708121432364,-2213.58330888,0.0003574,2]
[314260496,1708121432375,-2213.58330888,0.0003574,2]
[314260497,1708121432386,-2213.58330888,0.0003574,2]
[314260498,1708121432396,-2213.58330888,0.0003574,2]
[314260499,1708121432406,-2213.58330888,0.0003574,2]
[314260500,1708121432416,-2213.58330888,0.0003574,2]
[314260501,1708121432425,-2213.58330888,0.0003574,2]
[314260502,1708121432435,-2213.58330888,0.0003574,2]
[314260503,1708121432444,-2213.58330888,0.0003574,2]
[314260504,1708121432453,-2182.32286151,0.0003574,2]
[314260505,1708121432484,-31.26044737,0.0003574,2]
[314260506,1708121432494,-970.8675982,0.0003574,2]
[314260507,1708121432511,-555.38577169,0.0003574,2]
[314260508,1708121432577,-687.32993899,0.0003574,2]
[314260509,1708121432589,-740.50544234,0.0003574,2]
[314260513,1708121437724,-479.27280297,0.0003574,2]
[314260514,1708121437737,-288.35797557,0.0003574,2]
[314260515,1708121437749,-270.5502,0.0003574,2]
[314260516,1708121437766,-434.896888,0.0003574,2]
[314260517,1708121437776,-2213.58330888,0.0003574,2]
[314260518,1708121437786,-2213.58330888,0.0003574,2]
[314260519,1708121437796,-2213.58330888,0.0003574,2]
[314260520,1708121437805,-4565.78216691,0.0003575,2]
[314260521,1708121437873,-289.13177694,0.0003575,2]
[314260522,1708121437981,-8703.89291889,0.0003575,2]
[314260528,1708121440245,-489.47653646,0.0003575,2]
[314260529,1708121440305,-912.31412449,0.0003575,2]
[314260530,1708121440319,-269.31233977,0.0003575,2]
[314260531,1708121440331,-2358.50063164,0.0003575,2]
[314260532,1708121440344,-1689.95371135,0.0003575,2]
[314260533,1708121440358,-387.72733961,0.0003575,2]
[314260534,1708121440371,-515.56383828,0.0003575,2]
[314260535,1708121440385,-520.41,0.0003575,2]
[314260536,1708121440397,-340.89814659,0.0003575,2]
[314260537,1708121440410,-2179.37507382,0.0003575,2]
[314260538,1708121440427,-4916.21703301,0.0003575,2]
[314260539,1708121440439,-279.89873655,0.0003575,2]
[314260540,1708121441467,-255.04753596,0.0003575,2]
[314260541,1708121441480,-2191.88322506,0.0003575,2]
[314260561,1708121443933,-825.20607133,0.0003575,2]
[314260562,1708121443946,-557.46681115,0.0003575,2]
[314260563,1708121443988,-142613.5954894,0.0003575,2]
[314260564,1708121443997,-186.19,0.00035757,2]
[314260565,1708121444006,-2213.58330888,0.00035767,2]
[314260566,1708121444016,-595.05697581,0.00035798,7]
[314260567,1708121444025,-2213.58330888,0.00035867,2]
[314260568,1708121444034,-2213.58330888,0.00035867,2]
[314260569,1708121444043,-2213.58330888,0.00035867,2]
[314260570,1708121444052,-2213.58330888,0.00035867,2]
[314260571,1708121444061,-2213.58330888,0.00035867,2]
[314260572,1708121444070,-2213.58330888,0.00035867,2]
[314260573,1708121444079,-2213.58330888,0.00035867,2]
[314260574,1708121444089,-2213.58330888,0.00035867,2]
[314260575,1708121444098,-2213.58330888,0.00035867,2]
[314260576,1708121444107,-2213.58330888,0.00035867,2]
[314260577,1708121444117,-985.01758012,0.00035877,2]
[314260578,1708121444128,-2213.58330888,0.00035877,2]
[314260579,1708121444137,-2213.58330888,0.00035877,2]
[314260580,1708121444148,-2213.58330888,0.00035877,2]
[314260581,1708121444159,-2213.58330888,0.00035877,2]
[314260582,1708121444168,-2213.58330888,0.00035877,2]
[314260583,1708121444178,-2213.58330888,0.00035877,2]
[314260584,1708121444187,-2213.58330888,0.00035877,2]
[314260585,1708121444197,-2213.58330888,0.00035877,2]
[314260586,1708121444206,-2213.58330888,0.00035877,2]
[314260587,1708121444215,-2213.58330888,0.00035877,2]
[314260588,1708121444224,-2213.58330888,0.00035877,2]
[314260589,1708121444234,-2213.58330888,0.00035877,2]
[314260590,1708121444243,-2213.58330888,0.00035877,2]
[314260591,1708121444253,-30733.5752,0.00035887,2]
[314260592,1708121444264,-9700.0,0.00035887,2]
[314260593,1708121444274,-24151.9108,0.00035887,2]
[314260594,1708121444283,-210.0,0.00035898,2]
[314260595,1708121444293,-153.13459081,0.000359,2]
[314260596,1708121444304,-171.41527608,0.000359,2]
[314260597,1708121444314,-499.99,0.000359,2]
[314260598,1708121444324,-186.19,0.00035958,2]
[314260599,1708121444335,-155.0,0.00035997,4]
[314260600,1708121444345,-456165.22555957,0.00035998,2]
[314260601,1708121444355,-2883.486633,0.00036,2]
[314260602,1708121444364,-2059.63331,0.00036,2]
[314260603,1708121444374,-200179.27167966,0.00036,10]
[314260605,1708121444385,-1077.26869635,0.00036035,8]
[314260608,1708121444394,-175.0,0.00036135,2]
[314260609,1708121444404,-186.19,0.00036159,2]
[314260611,1708121444413,-155.64022283,0.00036247,2]
[314260613,1708121444422,-400.0,0.00036288,2]
[314260614,1708121444431,-186.19,0.00036359,2]
[314260616,1708121444440,-155.0,0.0003637,2]
[314260618,1708121444449,-186.19,0.0003656,2]
[314260619,1708121444458,-396.5,0.00036689,2]
[314260621,1708121444469,-225.0,0.00036912,2]
[314260623,1708121444478,-175.0,0.00037017,2]
[314260624,1708121444487,-283.86,0.00037027,2]
[314260626,1708121444496,-5615.62198828,0.00037357,14]
[314260627,1708121444505,-411.35048907,0.00037367,13]
[314260629,1708121444515,-985.0175801,0.00037456,2]
[314260631,1708121444524,-180.0,0.00037675,2]
[314260632,1708121444534,-155.0,0.0003774,2]
[314260634,1708121444543,-1077.26869626,0.0003775,11]
[314260636,1708121444553,-1902.38,0.00037832,2]
[314260638,1708121444562,-175.0,0.00037898,2]
[314260640,1708121444572,-150.0,0.00037899,2]
[314260641,1708121444583,-179.558672,0.000379,2]
[314260642,1708121444594,-274919.73653771,0.000379,2]
[314260643,1708121444607,-283.40137457,0.000379,2]
[314260644,1708121444802,-63569.42464792,0.000379,2]
[314260645,1708121444814,-590.50642128,0.000379,2]
[314260646,1708121444826,-642.55932315,0.000379,2]
[314260647,1708121444869,-386.73740415,0.000379,2]
[314260648,1708121444885,-497.86715934,0.000379,2]
[314260649,1708121444896,-795.35665588,0.000379,2]
[314260650,1708121444908,-289.09585908,0.000379,2]
[314260651,1708121444919,-1513.59526767,0.000379,2]
[314260652,1708121444930,-4138.43618621,0.000379,2]
[314260653,1708121444942,-3078.22787811,0.000379,2]
[314260654,1708121444953,-60675.76794193,0.000379,2]
[314260655,1708121444962,-500.0,0.00038,2]
[314260656,1708121444972,-155.64022283,0.00038073,2]
[314260657,1708121444981,-191.13,0.00038102,2]
[314260658,1708121444990,-700.60977341,0.00038224,2]
[314260659,1708121444999,-327.1,0.00038356,15]
[314260660,1708121445008,-157.4,0.00038356,2]
[314260661,1708121445017,-600.0,0.00038506,2]
[314260662,1708121445026,-595.05697575,0.00038527,8]
[314260663,1708121445035,-283.86,0.00038671,2]
[314260664,1708121445044,-175.0,0.00038779,2]
[314260665,1708121445053,-151.37,0.00038826,2]
[314260666,1708121445062,-396.5,0.00038953,2]
[314260667,1708121445072,-985.0175801,0.00039035,2]
[314260668,1708121445081,-165.17,0.00039058,2]
[314260669,1708121445090,-271.31605478,0.00039162,2]
[314260670,1708121445100,-1077.26869626,0.00039465,13]
[314260671,1708121445109,-399.86619232,0.00039556,11]
[314260672,1708121445118,-42076.03269376,0.000399,7]
[314260673,1708121445128,-155.64022283,0.000399,2]
[314260674,1708121445137,-831.66133533,0.000399,2]
[314260675,1708121445146,-385.99202278,0.000399,2]
[314260676,1708121445156,-389.85923443,0.0003999,3]
[314260677,1708121445165,-11666.50739363,0.0003999,5]
[314260678,1708121445178,-296.59422807,0.0003999,5]
[314260679,1708121445190,-1323.59054067,0.0003999,5]
[314260681,1708121445699,-427.06107433,0.00039899,31]
[314260682,1708121445759,-72.93892567,0.00039899,31]
[314260683,1708121445768,-500.0,0.00039899,31]
[314260684,1708121445778,-500.0,0.00039899,31]
[314260685,1708121445787,-500.0,0.00039899,31]
[314260686,1708121445797,-500.0,0.00039899,31]
[314260687,1708121445806,-500.0,0.00039899,31]
[314260688,1708121445816,-500.0,0.00039899,31]
[314260689,1708121445825,-500.0,0.00039899,31]
[314260690,1708121445835,-500.0,0.00039899,31]
[314260691,1708121445844,-500.0,0.00039899,31]
[314260692,1708121445853,-500.0,0.00039899,31]
[314260693,1708121445863,-500.0,0.00039899,31]
[314260694,1708121445872,-415.9326631,0.00039899,31]
[314260695,1708121445881,-500.0,0.00039899,31]
[314260696,1708121445890,-186478.22412819,0.0003999,5]
[314260697,1708121445906,-1250.0,0.0003999,5]
[314260698,1708122251146,317.2,0.00034035,2]
[314260711,1708122631892,-2000.0,0.00035184,2]
[314260712,1708122631902,-108.78726605,0.00035337,2]
[314260713,1708122631947,-540.0065819,0.00035337,2]
[314260714,1708122631959,-1080.41077486,0.00035337,2]
[314260715,1708122632003,-1255.08147719,0.00035337,2]
[314260716,1708122632014,-152.9,0.00035356,2]
[314260717,1708122632025,-231.44156593,0.00035433,2]
[314260718,1708122632112,-268.55843407,0.00035433,2]
[314260719,1708122632122,-2413.17240385,0.00035437,4]
[314260720,1708122632144,-523.15846262,0.00035438,2]
[314260721,1708122632154,-1231.8376,0.00035439,2]
[314260722,1708122632165,-1035.46324734,0.0003545,2]
[314260747,1708122637926,-250.0,0.000351,2]
[314260748,1708122637938,-573.86395266,0.0003545,2]
[314260749,1708122637948,-537.1485,0.0003545,2]
[314260750,1708122637957,-523.15846261,0.00035489,2]
[314260751,1708122637966,-170.31,0.00035501,2]
[314260752,1708122637976,-155.0,0.00035538,4]
[314260753,1708122637986,-833.18690971,0.00035538,2]
[314260754,1708122637998,-2390.03804844,0.00035538,2]
[314260755,1708122638036,-10389.331,0.00035538,2]
[314260756,1708122638091,-5465.31686755,0.00035538,2]
[314260758,1708122640554,-331.56512726,0.00035538,2]
[314260759,1708122640664,-615.0,0.00035538,2]
[314260760,1708122642909,-1176.01467312,0.00035538,2]
[314260761,1708122642965,-452.95416125,0.00035538,2]
[314260762,1708122643038,-2459.53667299,0.00035538,2]
[314260763,1708122643119,-397.29220794,0.00035538,2]
[314260764,1708122643135,-4228.99830104,0.00035538,2]
[314260765,1708122643147,-1017.00677308,0.00035538,2]
[314260767,1708122646033,-70243.75925762,0.00035538,2]
[314260768,1708122646043,-2360.3652,0.00035538,2]
[314260769,1708122646052,-1000.0,0.00035538,2]
[314260770,1708122646061,-2487.5329,0.00035538,2]
[314260771,1708122646071,-1431.17170361,0.00035539,2]
[314260772,1708122646080,-523.15846261,0.00035539,2]
[314260773,1708122646089,-837.26494318,0.0003555,2]
[314260774,1708122646098,-250.0,0.00035595,111]
[314260775,1708122646107,-250.0,0.00035606,2]
[314260776,1708122646116,-181.10463162,0.00035629,2]
[314260777,1708122646125,-107413.86702955,0.00035638,2]
[314260778,1708122646153,-1950.7190066,0.00035638,2]
[314260779,1708122646165,-30923.13915494,0.00035638,2]
[314260780,1708122646186,-5720.9252866,0.00035638,2]
[314260781,1708122646202,-16479.52850814,0.00035638,2]
[314260795,1708122698633,301.34,0.00033583,2]
[314260796,1708122732363,-25000.0,0.00035438,2]
[314260797,1708122749900,-13258.5,0.00035438,2]
[314260798,1708122749925,-446.29273183,0.0003555,7]
[314260799,1708122749949,-560.4878188,0.0003555,2]
[314260800,1708122749974,-10734.71944937,0.00035638,2]
[314260801,1708122751196,-25000.0,0.00035638,2]
[314260802,1708122752471,-25000.0,0.00035638,2]
[314260803,1708122949712,457.99352114,0.0003,10]
[314260804,1708122967703,2480.96650636,0.0003,10]
[314260805,1708122983928,500.0,0.000351,6]
[314260806,1708122984201,354.42378662,0.0003,10]
[314260807,1708123180613,3000.0,0.0003445,2]
[314260808,1708123223416,209.94,0.0003,2]
[314260809,1708123223443,209.94,0.00035,2]
[314260811,1708123266231,2500.0,0.00035,2]
[314260812,1708123309043,167.952,0.00035,2]
[314260813,1708123351826,2083.33333,0.00035,2]
[314260814,1708123394617,167.952,0.00035,2]
[314260815,1708123437598,1736.11111,0.00035,2]
[314260816,1708123480230,167.952,0.00035,2]
[314260817,1708123504348,1999.999999,5.97e-05,120]
[314260818,1708123523188,1446.75926,0.00035,2]
[314260819,1708123565823,167.952,0.00035,2]
[314260820,1708123608664,1205.63271,0.00035,2]
[314260821,1708123651459,167.95200995,0.00035,2]
[314260822,1708123694273,1004.69393,0.00035,2]
[314260834,1708123832079,-468.15,0.00035256,4]
[314260835,1708123832091,-13.93728435,0.00035256,4]
[314260836,1708123832100,-286.27,0.00035257,2]
[314260837,1708123832109,-276.15067576,0.00035436,2]
[314260838,1708123832134,-142.35112424,0.00035436,2]
[314260839,1708123832143,-317.40211311,0.00035438,2]
[314260840,1708123832154,-187.03692381,0.00035438,2]
[314260841,1708123832163,-1288.05453324,0.00035438,2]
[314260842,1708123832173,-150.0,0.00035446,2]
[314260843,1708123832181,-1587.90921225,0.0003545,2]
[314260844,1708123832192,-653.32666739,0.0003545,2]
[314260845,1708123832205,-765.18057038,0.0003545,2]
[314260846,1708123832217,-467.8057218,0.0003545,2]
[314260847,1708123832307,-952.14196951,0.0003545,2]
[314260848,1708123832318,-1086.57945867,0.0003545,2]
[314260849,1708123832327,-4557.41874133,0.00035537,2]
[314260850,1708123832362,-415.03901403,0.00035537,2]
[314260867,1708123838081,-397.86579353,0.00035537,2]
[314260868,1708123838133,-19908.22222559,0.00035537,2]
[314260869,1708123838146,-273.00145946,0.00035537,2]
[314260870,1708123838409,-2290.39247259,0.00035537,2]
[314260879,1708123841630,-2213.06846029,0.00035537,2]
[314260880,1708123841642,-669.3090582,0.00035537,2]
[314260881,1708123841654,-18586.60263915,0.00035537,2]
[314260882,1708123841666,-32566.27368448,0.00035537,2]
[314260883,1708123841678,-1241.01269705,0.00035537,2]
[314260884,1708123841706,-410.40491062,0.00035537,2]
[314260885,1708123841719,-779.65,0.00035537,2]
[314260924,1708123846320,-482.08728435,0.00035536,4]
[314260925,1708123846330,-2115.16271565,0.00035537,2]
[314260927,1708123965968,5465.47341339,0.0002509,2]
[314260928,1708123973688,3644.9227114,0.000263,2]
[314260931,1708124035558,3950.0,0.0002,2]
[314260932,1708124047225,1976.49885611,0.0002,2]
[314260933,1708124047251,1000.0,0.000135,2]
[314260934,1708124047382,284.03220708,0.000125,2]
[314260935,1708124055078,369.69,0.0003466,2]
[314260936,1708124056772,158.30384599,0.0002,2]
[314260937,1708124058577,820.18480296,0.000272,2]
[314260938,1708124058603,4392.06609359,0.000272,2]
[314260939,1708124059338,236.45891186,0.00022,2]
[314260941,1708124059949,238.34381878,0.00025,2]
[314260942,1708124062585,235.1606757,0.000137,2]
[314260943,1708124062628,16131.93365468,0.00028,2]
[314260944,1708124063149,156.15106252,0.00022,2]
[314260945,1708124063479,206.68392952,0.0001,2]
[314260950,1708124192555,259.7400047,0.00024,2]
[314260951,1708124418285,250.0,0.00034974,2]
[314260952,1708124480799,412.01,0.00034976,2]
[314260953,1708124526588,150.0,0.00034986,2]
[314260954,1708124531138,152.9,0.00034916,2]
[314260955,1708124551903,351.2,0.00033874,2]
[314260956,1708124566755,250.0,0.00034756,2]
[314260957,1708124585079,250.0,0.00034808,111]
[314260958,1708124609066,427.47,0.00034786,2]
[314260959,1708124665565,374.71,0.00034746,2]
[314260960,1708124671734,525.17184865,0.00034971,2]
[314260961,1708124876092,220.0,0.00034,2]
[314260969,1708125032282,-378.25609224,0.000345,15]
[314260970,1708125032336,-406.45143722,0.000345,15]
[314260971,1708125032396,-586.84247054,0.000345,15]
[314260972,1708125032448,-570.09,0.000345,15]
[314260980,1708125038246,-3671.27,0.000345,15]
[314260981,1708125038255,-343.34,0.00034582,2]
[314260982,1708125038265,-557.50973563,0.00034582,2]
[314260983,1708125038281,-1773.48026437,0.00034582,2]
[314260984,1708125038291,-250.0,0.00034584,2]
[314260985,1708125038300,-176.41,0.00034776,2]
[314260986,1708125038309,-200.0,0.00034789,2]
[314260987,1708125038319,-2000.0,0.00034908,2]
[314260988,1708125038328,-162.43,0.0003505,2]
[314260989,1708125038337,-1000.0,0.00035192,2]
[314260990,1708125038346,-161.10780887,0.00035336,2]
[314260991,1708125038355,-162.43,0.00035355,2]
[314260992,1708125038365,-12154.7493,0.00035436,2]
[314260993,1708125038374,-252.685,0.00035436,2]
[314260994,1708125038384,-482.08728435,0.00035437,4]
[314260995,1708125038393,-499.99,0.00035437,2]